[Event "*** Titled Tuesday 3|2 Blitz"]
[Site "Chess.com"]
[Date "2015.11.03"]
[Round "1"]
[White "Penguininja"]
[Black "Izoria123"]
[Result "0-1"]
[WhiteElo "2153"]
[BlackElo "2451"]
[TimeControl "180+2"]
[EndTime "17:05:07 PST"]
[Termination "Izoria123 won by resignation"]

1. d4 {[%clk 0:03:00.4]} 1... Nf6 {[%clk 0:02:59.9]} 2. Nf3 {[%clk 0:03:00.6]}
2... g6 {[%clk 0:03:00.6]} 3. c4 {[%clk 0:03:01.7]} 3... Bg7 {[%clk 0:03:01.4]}
4. Nc3 {[%clk 0:03:03.3]} 4... d5 {[%clk 0:03:02.8]} 5. cxd5 {[%clk 0:03:02.3]}
5... Nxd5 {[%clk 0:03:04]} 6. e4 {[%clk 0:03:04]} 6... Nxc3 {[%clk 0:03:05.1]}
7. bxc3 {[%clk 0:03:05.9]} 7... c5 {[%clk 0:03:06.5]} 8. Be3 {[%clk 0:03:07.4]}
8... Qa5 {[%clk 0:03:06]} 9. Qd2 {[%clk 0:03:08.5]} 9... O-O {[%clk 0:03:04.8]}
10. Rb1 {[%clk 0:03:08]} 10... b6 {[%clk 0:02:55.2]} 11. Rb5 {[%clk 0:02:53.3]}
11... Qa4 {[%clk 0:02:52.9]} 12. Rb3 {[%clk 0:02:49.8]} 12... Bg4 {[%clk
0:02:12]} 13. Be2 {[%clk 0:02:26.3]} 13... cxd4 {[%clk 0:01:53.8]} 14. cxd4
{[%clk 0:02:23.2]} 14... Bxf3 {[%clk 0:01:52.7]} 15. gxf3 {[%clk 0:02:12.8]}
15... Qd7 {[%clk 0:01:48.7]} 16. O-O {[%clk 0:02:12.3]} 16... Nc6 {[%clk
0:01:45.9]} 17. Bb5 {[%clk 0:02:07.2]} 17... a6 {[%clk 0:01:14]} 18. Bxc6 {[%clk
0:02:06.9]} 18... Qxc6 {[%clk 0:01:15.5]} 19. d5 {[%clk 0:02:08.5]} 19... Qf6
{[%clk 0:01:15.9]} 20. Bxb6 {[%clk 0:01:55.7]} 20... Rab8 {[%clk 0:01:16.3]} 21.
Rd1 {[%clk 0:01:47.9]} 21... Rxb6 {[%clk 0:01:00.1]} 22. Re3 {[%clk 0:01:47.6]}
22... Qg5+ {[%clk 0:00:58.7]} 23. Kh1 {[%clk 0:01:48.6]} 23... Be5 {[%clk
0:00:58.2]} 24. Ree1 {[%clk 0:01:48.9]} 24... Qxd2 {[%clk 0:00:57.9]} 25. Rxd2
{[%clk 0:01:49.4]} 0-1

[Event "*** Titled Tuesday 3|2 Blitz"]
[Site "Chess.com"]
[Date "2015.11.03"]
[Round "1"]
[White "Tesla17"]
[Black "Dlugy"]
[Result "0-1"]
[WhiteElo "2226"]
[BlackElo "2574"]
[TimeControl "180+2"]
[EndTime "17:06:21 PST"]
[Termination "Dlugy won by resignation"]

1. d4 {[%clk 0:03:01.2]} 1... Nf6 {[%clk 0:02:58.4]} 2. c4 {[%clk 0:03:02.6]}
2... g6 {[%clk 0:02:59.5]} 3. Nc3 {[%clk 0:03:04]} 3... Bg7 {[%clk 0:03:00.9]}
4. e4 {[%clk 0:03:04.8]} 4... d6 {[%clk 0:03:02]} 5. Be2 {[%clk 0:03:06.2]} 5...
O-O {[%clk 0:03:03.3]} 6. Nf3 {[%clk 0:03:07.7]} 6... e5 {[%clk 0:03:04]} 7. O-O
{[%clk 0:03:09]} 7... exd4 {[%clk 0:03:04.9]} 8. Nxd4 {[%clk 0:03:09.6]} 8...
Re8 {[%clk 0:03:06.5]} 9. f3 {[%clk 0:03:10.4]} 9... c6 {[%clk 0:03:08.1]} 10.
Kh1 {[%clk 0:03:04.3]} 10... Nbd7 {[%clk 0:03:09]} 11. Bg5 {[%clk 0:03:01.5]}
11... Qa5 {[%clk 0:03:08.6]} 12. Bh4 {[%clk 0:02:49.9]} 12... a6 {[%clk
0:02:59.6]} 13. Bg3 {[%clk 0:02:48.2]} 13... Ne5 {[%clk 0:02:57.1]} 14. Qd2
{[%clk 0:02:42.7]} 14... Nh5 {[%clk 0:02:53.2]} 15. Bf2 {[%clk 0:02:42.8]} 15...
Qc7 {[%clk 0:02:39.1]} 16. Rfd1 {[%clk 0:02:42]} 16... b5 {[%clk 0:02:36]} 17.
cxb5 {[%clk 0:02:36.9]} 17... axb5 {[%clk 0:02:37.1]} 18. a3 {[%clk 0:02:29.2]}
18... Nc4 {[%clk 0:02:33.7]} 19. Bxc4 {[%clk 0:02:26.9]} 19... bxc4 {[%clk
0:02:35.3]} 20. Qc2 {[%clk 0:02:19.2]} 20... Nf4 {[%clk 0:02:31.7]} 21. Bg3
{[%clk 0:02:09.2]} 21... Be5 {[%clk 0:02:27.2]} 22. Nde2 {[%clk 0:02:06.2]}
22... Nd3 {[%clk 0:02:26.1]} 23. Bxe5 {[%clk 0:02:04.7]} 23... Rxe5 {[%clk
0:02:25.7]} 24. b3 {[%clk 0:02:00.4]} 24... Nf2+ {[%clk 0:02:24.6]} 25. Kg1
{[%clk 0:02:01.3]} 25... Nxd1 {[%clk 0:02:25.7]} 26. Nxd1 {[%clk 0:02:02.5]}
26... Qb6+ {[%clk 0:02:26.3]} 27. Kh1 {[%clk 0:01:58.5]} 27... cxb3 {[%clk
0:02:26.9]} 28. Qb2 {[%clk 0:01:59.7]} 28... Be6 {[%clk 0:02:22.9]} 29. Ndc3
{[%clk 0:01:54.1]} 29... Bc4 {[%clk 0:02:22.4]} 30. Ng3 {[%clk 0:01:51.3]} 30...
Rea5 {[%clk 0:02:13.5]} 31. f4 {[%clk 0:01:50.3]} 31... Qc5 {[%clk 0:02:02.6]}
32. Nb1 {[%clk 0:01:46.9]} 32... h5 {[%clk 0:01:47.5]} 33. e5 {[%clk 0:01:44.8]}
33... dxe5 {[%clk 0:01:45.1]} 34. Ne4 {[%clk 0:01:45.7]} 34... Qd4 {[%clk
0:01:46.3]} 35. Nbc3 {[%clk 0:01:31.4]} 35... exf4 {[%clk 0:01:46.9]} 36. Rd1
{[%clk 0:01:29.1]} 36... Qe5 {[%clk 0:01:47.8]} 37. Qf2 {[%clk 0:01:24.6]} 37...
Rxa3 {[%clk 0:01:44.6]} 38. Qh4 {[%clk 0:01:25]} 38... Ra1 {[%clk 0:01:43.3]}
0-1

[Event "*** Titled Tuesday 3|2 Blitz"]
[Site "Chess.com"]
[Date "2015.11.03"]
[Round "1"]
[White "Alliswell998"]
[Black "Sadovsky_Artem"]
[Result "0-1"]
[WhiteElo "2099"]
[BlackElo "2413"]
[TimeControl "180+2"]
[EndTime "17:07:11 PST"]
[Termination "Sadovsky_Artem won by resignation"]

1. e4 {[%clk 0:02:58.2]} 1... g6 {[%clk 0:03:00.9]} 2. Nc3 {[%clk 0:02:56.8]}
2... Bg7 {[%clk 0:03:02.5]} 3. f4 {[%clk 0:02:56.5]} 3... d6 {[%clk 0:03:03.7]}
4. Nf3 {[%clk 0:02:54.1]} 4... c5 {[%clk 0:03:03.5]} 5. Bc4 {[%clk 0:02:54.5]}
5... a6 {[%clk 0:03:03.8]} 6. a4 {[%clk 0:02:54.5]} 6... Nf6 {[%clk 0:03:02.9]}
7. d3 {[%clk 0:02:54.8]} 7... O-O {[%clk 0:03:01.2]} 8. O-O {[%clk 0:02:54.5]}
8... Nc6 {[%clk 0:03:01.6]} 9. Kh1 {[%clk 0:02:51.6]} 9... Rb8 {[%clk
0:02:59.4]} 10. Be3 {[%clk 0:02:48.1]} 10... Bg4 {[%clk 0:02:52.3]} 11. h3
{[%clk 0:02:47.1]} 11... Bxf3 {[%clk 0:02:52.9]} 12. Qxf3 {[%clk 0:02:47]} 12...
Nd4 {[%clk 0:02:53.7]} 13. Qf2 {[%clk 0:02:45.5]} 13... Nd7 {[%clk 0:02:49.9]}
14. a5 {[%clk 0:02:21.2]} 14... e6 {[%clk 0:02:46.7]} 15. Rac1 {[%clk
0:02:17.2]} 15... Qxa5 {[%clk 0:02:42.4]} 16. f5 {[%clk 0:02:01.2]} 16... exf5
{[%clk 0:02:40.3]} 17. Qh4 {[%clk 0:01:54.7]} 17... b5 {[%clk 0:02:29.6]} 18.
Bd5 {[%clk 0:01:44.4]} 18... b4 {[%clk 0:02:26.4]} 19. Nd1 {[%clk 0:01:25.4]}
19... Ne2 {[%clk 0:02:24]} 20. Rb1 {[%clk 0:01:22.1]} 20... f4 {[%clk
0:02:25.1]} 21. Bxf4 {[%clk 0:01:17.6]} 21... Nxf4 {[%clk 0:02:26.7]} 22. Rxf4
{[%clk 0:01:17.7]} 22... Ne5 {[%clk 0:02:25.3]} 23. Ne3 {[%clk 0:01:13.6]} 23...
h6 {[%clk 0:02:10.8]} 24. Qg3 {[%clk 0:01:09.1]} 24... Qd8 {[%clk 0:02:08.8]}
25. Rbf1 {[%clk 0:01:08.2]} 25... a5 {[%clk 0:01:56]} 26. h4 {[%clk 0:01:08.8]}
26... h5 {[%clk 0:01:54.2]} 27. c3 {[%clk 0:00:57.3]} 27... bxc3 {[%clk
0:01:50.1]} 28. bxc3 {[%clk 0:00:57.6]} 28... Kh8 {[%clk 0:01:49.3]} 29. d4
{[%clk 0:00:57.8]} 29... cxd4 {[%clk 0:01:39.2]} 30. cxd4 {[%clk 0:00:58.2]}
30... Nd3 {[%clk 0:01:40.7]} 31. Rxf7 {[%clk 0:00:57.8]} 31... Rxf7 {[%clk
0:01:40.2]} 32. Rxf7 {[%clk 0:00:59.5]} 32... Bxd4 {[%clk 0:01:36.8]} 33. Nf5
{[%clk 0:00:37.2]} 33... Rb1+ {[%clk 0:01:34.3]} 34. Kh2 {[%clk 0:00:38]} 34...
Be5 {[%clk 0:01:35.1]} 35. Ne7 {[%clk 0:00:25.6]} 35... Bxg3+ {[%clk 0:01:34.9]}
36. Kxg3 {[%clk 0:00:26.1]} 36... Ne5 {[%clk 0:01:26.2]} 0-1

[Event "*** Titled Tuesday 3|2 Blitz"]
[Site "Chess.com"]
[Date "2015.11.03"]
[Round "1"]
[White "wanyaland"]
[Black "Boryboy"]
[Result "0-1"]
[WhiteElo "2195"]
[BlackElo "2471"]
[TimeControl "180+2"]
[EndTime "17:07:14 PST"]
[Termination "Boryboy won by resignation"]

1. d4 {[%clk 0:00:39.2]} 1... e6 {[%clk 0:03:01.9]} 2. c4 {[%clk 0:00:40]} 2...
d5 {[%clk 0:03:01.6]} 3. Nc3 {[%clk 0:00:41.9]} 3... Nf6 {[%clk 0:03:02.9]} 4.
Nf3 {[%clk 0:00:43.8]} 4... Nbd7 {[%clk 0:03:03.9]} 5. e3 {[%clk 0:00:45.7]}
5... Bd6 {[%clk 0:03:02.9]} 6. Bd3 {[%clk 0:00:47.6]} 6... dxc4 {[%clk
0:03:03.5]} 7. Bxc4 {[%clk 0:00:47.4]} 7... a6 {[%clk 0:03:05.1]} 8. O-O {[%clk
0:00:48.7]} 8... b5 {[%clk 0:03:06.2]} 9. Bd3 {[%clk 0:00:50.6]} 9... Bb7 {[%clk
0:03:07.8]} 10. e4 {[%clk 0:00:51.8]} 10... b4 {[%clk 0:03:05.7]} 11. e5 {[%clk
0:00:52.8]} 11... bxc3 {[%clk 0:03:05.8]} 12. exd6 {[%clk 0:00:53.7]} 12... cxb2
{[%clk 0:03:05.2]} 13. Bxb2 {[%clk 0:00:55.2]} 13... cxd6 {[%clk 0:03:06.3]} 14.
Ba3 {[%clk 0:00:56.7]} 14... Qe7 {[%clk 0:03:02.7]} 15. Rb1 {[%clk 0:00:57.6]}
15... Bd5 {[%clk 0:03:03.3]} 16. Qe2 {[%clk 0:00:57.4]} 16... O-O {[%clk
0:03:04.1]} 17. Ne5 {[%clk 0:00:57.7]} 17... Rfc8 {[%clk 0:03:01.9]} 18. Nc4
{[%clk 0:00:57.2]} 18... Bxc4 {[%clk 0:03:01.8]} 19. Bxc4 {[%clk 0:00:57.7]}
19... a5 {[%clk 0:02:57.8]} 20. d5 {[%clk 0:00:58.5]} 20... e5 {[%clk
0:02:58.5]} 21. f4 {[%clk 0:00:56.8]} 21... h6 {[%clk 0:02:50.8]} 22. Rfe1
{[%clk 0:00:52.7]} 22... e4 {[%clk 0:02:45.2]} 23. Bb5 {[%clk 0:00:49.7]} 23...
Nc5 {[%clk 0:02:45.9]} 24. Bc6 {[%clk 0:00:50]} 24... Rab8 {[%clk 0:02:47.2]}
25. Bxc5 {[%clk 0:00:50.1]} 25... dxc5 {[%clk 0:02:48]} 26. Qc4 {[%clk
0:00:50.3]} 26... Qd6 {[%clk 0:02:48.4]} 27. g3 {[%clk 0:00:50.3]} 27... h5
{[%clk 0:02:49.6]} 28. Rec1 {[%clk 0:00:47.3]} 28... Rb4 {[%clk 0:02:44.6]} 29.
Qc3 {[%clk 0:00:44]} 29... h4 {[%clk 0:02:43.5]} 30. a3 {[%clk 0:00:44]} 30...
Rxb1 {[%clk 0:02:42.9]} 31. Rxb1 {[%clk 0:00:45]} 31... hxg3 {[%clk 0:02:43.9]}
32. Qe5 {[%clk 0:00:43]} 32... gxh2+ {[%clk 0:02:41.9]} 33. Kh1 {[%clk 0:00:43]}
33... Qf8 {[%clk 0:02:43]} 34. Rb2 {[%clk 0:00:41.4]} 34... Rd8 {[%clk
0:02:40.2]} 35. Rg2 {[%clk 0:00:41.7]} 35... Qd6 {[%clk 0:02:41.4]} 36. Kxh2
{[%clk 0:00:41.3]} 36... Qxe5 {[%clk 0:02:38.5]} 37. fxe5 {[%clk 0:00:41.8]}
37... Nxd5 {[%clk 0:02:40.1]} 38. Rd2 {[%clk 0:00:42.7]} 38... e3 {[%clk
0:02:41.5]} 39. Re2 {[%clk 0:00:37.8]} 39... Ne7 {[%clk 0:02:39.7]} 40. Bf3
{[%clk 0:00:36.2]} 40... Rd3 {[%clk 0:02:40.6]} 41. Kg3 {[%clk 0:00:36.6]} 41...
Rxa3 {[%clk 0:02:40.7]} 42. Kf4 {[%clk 0:00:37.3]} 42... g6 {[%clk 0:02:36.4]}
43. Be4 {[%clk 0:00:37.5]} 43... Kg7 {[%clk 0:02:37.4]} 44. Rb2 {[%clk 0:00:37]}
44... Nf5 {[%clk 0:02:32.5]} 45. Kf3 {[%clk 0:00:31.1]} 45... Nd4+ {[%clk
0:02:32.8]} 46. Kf4 {[%clk 0:00:31.2]} 46... e2 {[%clk 0:02:33.9]} 0-1

[Event "*** Titled Tuesday 3|2 Blitz"]
[Site "Chess.com"]
[Date "2015.11.03"]
[Round "1"]
[White "Viaje"]
[Black "DanielNaroditsky"]
[Result "0-1"]
[WhiteElo "2221"]
[BlackElo "2556"]
[TimeControl "180+2"]
[EndTime "17:08:29 PST"]
[Termination "DanielNaroditsky won by resignation"]

1. d4 {[%clk 0:03:01.9]} 1... Nf6 {[%clk 0:03:00.7]} 2. c4 {[%clk 0:03:03.2]}
2... e6 {[%clk 0:03:02.1]} 3. Nc3 {[%clk 0:03:03.6]} 3... Bb4 {[%clk 0:03:02.9]}
4. f3 {[%clk 0:03:05]} 4... c5 {[%clk 0:02:58.2]} 5. d5 {[%clk 0:03:05.4]} 5...
d6 {[%clk 0:02:59.7]} 6. e4 {[%clk 0:03:06.4]} 6... O-O {[%clk 0:03:01.3]} 7.
Ne2 {[%clk 0:03:07]} 7... b5 {[%clk 0:03:02.5]} 8. Nf4 {[%clk 0:03:07.2]} 8...
e5 {[%clk 0:03:03.2]} 9. Nd3 {[%clk 0:02:58.8]} 9... bxc4 {[%clk 0:03:02.5]} 10.
Nf2 {[%clk 0:02:59.5]} 10... Nbd7 {[%clk 0:02:49.6]} 11. Bxc4 {[%clk 0:02:58.8]}
11... Nb6 {[%clk 0:02:50]} 12. Be2 {[%clk 0:02:56.7]} 12... c4 {[%clk
0:02:47.1]} 13. Be3 {[%clk 0:02:52.1]} 13... Nfd7 {[%clk 0:02:47.4]} 14. O-O
{[%clk 0:02:44.4]} 14... Bc5 {[%clk 0:02:48.4]} 15. Bxc5 {[%clk 0:02:41.7]}
15... Nxc5 {[%clk 0:02:48.9]} 16. Nb5 {[%clk 0:02:31.6]} 16... Ba6 {[%clk
0:02:39.7]} 17. Na3 {[%clk 0:02:32]} 17... Rb8 {[%clk 0:02:32.8]} 18. Rc1 {[%clk
0:02:32.2]} 18... Nba4 {[%clk 0:02:33.2]} 19. Nxc4 {[%clk 0:02:20]} 19... Bxc4
{[%clk 0:02:31.8]} 20. Bxc4 {[%clk 0:02:20.6]} 20... Nxb2 {[%clk 0:02:33.5]} 21.
Qe2 {[%clk 0:02:19.2]} 21... Qa5 {[%clk 0:02:19.8]} 22. Rb1 {[%clk 0:01:52.4]}
22... Qc3 {[%clk 0:01:51.7]} 23. Bb3 {[%clk 0:01:40.4]} 23... Nbd3 {[%clk
0:01:33.7]} 24. Nxd3 {[%clk 0:01:39.2]} 24... Nxd3 {[%clk 0:01:28.9]} 25. Qe3
{[%clk 0:01:17]} 25... Qc5 {[%clk 0:01:29]} 26. Qxc5 {[%clk 0:01:17.2]} 26...
Nxc5 {[%clk 0:01:30.2]} 27. Bc4 {[%clk 0:01:10.5]} 27... Rfc8 {[%clk 0:01:31.3]}
28. Kf2 {[%clk 0:01:02.5]} 28... Kf8 {[%clk 0:01:29.4]} 29. Be2 {[%clk
0:01:00.8]} 29... Ke7 {[%clk 0:01:29]} 30. Ke3 {[%clk 0:01:01.5]} 30... g6
{[%clk 0:01:20]} 31. Kd2 {[%clk 0:00:52.5]} 31... f5 {[%clk 0:01:07.7]} 32. Bd3
{[%clk 0:00:53.5]} 32... Kf6 {[%clk 0:01:04.4]} 33. h4 {[%clk 0:00:45.1]} 33...
f4 {[%clk 0:01:00.8]} 34. Rfc1 {[%clk 0:00:39.7]} 34... h6 {[%clk 0:00:59.5]}
35. Rb5 {[%clk 0:00:21.7]} 35... Rxb5 {[%clk 0:00:51.7]} 36. Bxb5 {[%clk
0:00:23.6]} 36... Rb8 {[%clk 0:00:53.3]} 37. Bc6 {[%clk 0:00:23.2]} 37... Rb2+
{[%clk 0:00:45.7]} 38. Rc2 {[%clk 0:00:23.7]} 38... Rxc2+ {[%clk 0:00:46.9]} 39.
Kxc2 {[%clk 0:00:25.6]} 39... g5 {[%clk 0:00:48.4]} 40. hxg5+ {[%clk 0:00:26.4]}
40... Kxg5 {[%clk 0:00:49.5]} 41. Kd2 {[%clk 0:00:11.3]} 41... Kh4 {[%clk
0:00:50.8]} 42. Ke2 {[%clk 0:00:12.8]} 42... Kg3 {[%clk 0:00:52.5]} 43. Kf1
{[%clk 0:00:14]} 43... h5 {[%clk 0:00:54.2]} 44. Be8 {[%clk 0:00:14.2]} 44... h4
{[%clk 0:00:54.9]} 45. Bh5 {[%clk 0:00:15.7]} 45... a5 {[%clk 0:00:44.3]} 46.
Bg4 {[%clk 0:00:16.6]} 46... Nxe4 {[%clk 0:00:45.1]} 0-1

[Event "*** Titled Tuesday 3|2 Blitz"]
[Site "Chess.com"]
[Date "2015.11.03"]
[Round "1"]
[White "E-Shaposhnikov"]
[Black "kikydu96"]
[Result "0-1"]
[WhiteElo "2515"]
[BlackElo "2231"]
[TimeControl "180+2"]
[EndTime "17:09:34 PST"]
[Termination "kikydu96 won by resignation"]

1. Nf3 {[%clk 0:02:59]} 1... Nf6 {[%clk 0:03:00.6]} 2. c4 {[%clk 0:02:59.9]}
2... c6 {[%clk 0:03:01.5]} 3. d4 {[%clk 0:02:59.8]} 3... d5 {[%clk 0:03:00.7]}
4. e3 {[%clk 0:03:00.3]} 4... Bf5 {[%clk 0:02:58.1]} 5. Nc3 {[%clk 0:02:55.6]}
5... a6 {[%clk 0:02:59.1]} 6. Bd3 {[%clk 0:02:53.8]} 6... Bg6 {[%clk 0:02:23.8]}
7. O-O {[%clk 0:02:51.6]} 7... e6 {[%clk 0:02:21.7]} 8. Bxg6 {[%clk 0:02:25.6]}
8... hxg6 {[%clk 0:02:21.1]} 9. Qe2 {[%clk 0:02:27.1]} 9... Bb4 {[%clk
0:02:09.1]} 10. Bd2 {[%clk 0:02:25.7]} 10... Bxc3 {[%clk 0:02:07.6]} 11. Bxc3
{[%clk 0:02:13.6]} 11... Ne4 {[%clk 0:02:09.1]} 12. Bb4 {[%clk 0:02:10.6]} 12...
Nd7 {[%clk 0:02:08.4]} 13. h3 {[%clk 0:02:04.5]} 13... f5 {[%clk 0:02:06.6]} 14.
Ne1 {[%clk 0:01:59.8]} 14... g5 {[%clk 0:02:03.1]} 15. Kh2 {[%clk 0:01:15.9]}
15... g4 {[%clk 0:01:56.3]} 16. f3 {[%clk 0:01:15.6]} 16... gxh3 {[%clk
0:01:47]} 17. g3 {[%clk 0:01:07.1]} 17... Nef6 {[%clk 0:00:50.9]} 18. Bd6 {[%clk
0:01:01.6]} 18... Nb6 {[%clk 0:00:42]} 19. c5 {[%clk 0:00:55.6]} 19... Nc4
{[%clk 0:00:42.8]} 20. Bf4 {[%clk 0:00:55.8]} 20... g5 {[%clk 0:00:31.9]} 21.
Bxg5 {[%clk 0:00:38.5]} 21... Ng4+ {[%clk 0:00:33]} 22. fxg4 {[%clk 0:00:39.7]}
22... Qxg5 {[%clk 0:00:33.1]} 23. Rf4 {[%clk 0:00:39.7]} 23... fxg4 {[%clk
0:00:27.9]} 24. b3 {[%clk 0:00:37.4]} 24... e5 {[%clk 0:00:23.7]} 25. Rf2 {[%clk
0:00:14.5]} 25... Nxe3 {[%clk 0:00:18.8]} 26. Nd3 {[%clk 0:00:15.8]} 26... exd4
{[%clk 0:00:18.5]} 27. Nf4 {[%clk 0:00:13.2]} 27... O-O-O {[%clk 0:00:18.9]} 28.
Ne6 {[%clk 0:00:14.3]} 28... Qe5 {[%clk 0:00:17.4]} 29. Nxd8 {[%clk 0:00:14.2]}
29... Rxd8 {[%clk 0:00:19]} 30. Qd3 {[%clk 0:00:13.8]} 30... Re8 {[%clk
0:00:17.7]} 31. Re1 {[%clk 0:00:14.7]} 31... Qe4 {[%clk 0:00:17.5]} 32. Qxe4
{[%clk 0:00:12.8]} 32... dxe4 {[%clk 0:00:18.9]} 33. Rf4 {[%clk 0:00:13.8]}
33... Re5 {[%clk 0:00:16]} 34. Kg1 {[%clk 0:00:13.5]} 34... Kd7 {[%clk
0:00:15.3]} 35. Kf2 {[%clk 0:00:14.5]} 35... Ke6 {[%clk 0:00:16.5]} 36. Rf8
{[%clk 0:00:12.5]} 36... Rf5+ {[%clk 0:00:16.4]} 37. Rxf5 {[%clk 0:00:13.7]}
37... Kxf5 {[%clk 0:00:18]} 38. b4 {[%clk 0:00:14.3]} 38... Nd5 {[%clk
0:00:16.7]} 39. Ke2 {[%clk 0:00:15.3]} 39... Nxb4 {[%clk 0:00:17.1]} 40. Rf1+
{[%clk 0:00:16.5]} 40... Ke5 {[%clk 0:00:17.7]} 41. Rf7 {[%clk 0:00:16.5]} 41...
Nd3 {[%clk 0:00:17.3]} 42. Rxb7 {[%clk 0:00:16.4]} 42... Nxc5 {[%clk 0:00:18.9]}
43. Rg7 {[%clk 0:00:18]} 43... h2 {[%clk 0:00:18.1]} 44. Rh7 {[%clk 0:00:19]}
44... e3 {[%clk 0:00:18.5]} 45. Rh4 {[%clk 0:00:17.5]} 45... Kf5 {[%clk
0:00:16.4]} 46. a3 {[%clk 0:00:15.8]} 46... a5 {[%clk 0:00:17]} 47. a4 {[%clk
0:00:16.1]} 47... Nxa4 {[%clk 0:00:18]} 48. Kd3 {[%clk 0:00:16.4]} 48... Nc5+
{[%clk 0:00:17.6]} 49. Kxd4 {[%clk 0:00:15.6]} 49... e2 {[%clk 0:00:19.1]} 50.
Rh5+ {[%clk 0:00:15.9]} 50... Kg6 {[%clk 0:00:19.7]} 0-1

[Event "*** Titled Tuesday 3|2 Blitz"]
[Site "Chess.com"]
[Date "2015.11.03"]
[Round "1"]
[White "jcgs1030"]
[Black "simplerXiao"]
[Result "1/2-1/2"]
[WhiteElo "2159"]
[BlackElo "2351"]
[TimeControl "180+2"]
[EndTime "17:09:38 PST"]
[Termination "Game drawn - insufficient material"]

1. e4 {[%clk 0:02:56.5]} 1... c5 {[%clk 0:02:55.6]} 2. Nf3 {[%clk 0:02:57]} 2...
e6 {[%clk 0:02:56.4]} 3. d4 {[%clk 0:02:57.5]} 3... cxd4 {[%clk 0:02:58.3]} 4.
Nxd4 {[%clk 0:02:58.2]} 4... Nc6 {[%clk 0:03:00]} 5. Nc3 {[%clk 0:02:58.4]} 5...
a6 {[%clk 0:03:01.2]} 6. Be3 {[%clk 0:02:57.8]} 6... Qc7 {[%clk 0:03:02.3]} 7.
Qd2 {[%clk 0:02:57.8]} 7... Nf6 {[%clk 0:03:01.6]} 8. O-O-O {[%clk 0:02:54.5]}
8... Bb4 {[%clk 0:03:02.3]} 9. f3 {[%clk 0:02:51.1]} 9... b5 {[%clk 0:02:58.9]}
10. a3 {[%clk 0:02:36.6]} 10... Be7 {[%clk 0:02:51.8]} 11. Nb3 {[%clk
0:02:13.2]} 11... b4 {[%clk 0:02:45.1]} 12. axb4 {[%clk 0:02:12.1]} 12... Nxb4
{[%clk 0:02:43.7]} 13. g4 {[%clk 0:01:52.9]} 13... O-O {[%clk 0:02:33.2]} 14. g5
{[%clk 0:01:49.6]} 14... Ne8 {[%clk 0:02:33.5]} 15. f4 {[%clk 0:01:44.3]} 15...
Bb7 {[%clk 0:02:30.9]} 16. Rg1 {[%clk 0:01:39.9]} 16... Nd6 {[%clk 0:02:11.1]}
17. Qd4 {[%clk 0:01:25.1]} 17... Nxe4 {[%clk 0:02:05.2]} 18. Qxd7 {[%clk
0:01:18.6]} 18... Rac8 {[%clk 0:01:54.4]} 19. Qxc7 {[%clk 0:00:53.7]} 19... Rxc7
{[%clk 0:01:54.3]} 20. Bd4 {[%clk 0:00:54]} 20... Nxc3 {[%clk 0:01:50.9]} 21.
bxc3 {[%clk 0:00:51.5]} 21... Nd5 {[%clk 0:01:49.7]} 22. Be5 {[%clk 0:00:51.7]}
22... Ba3+ {[%clk 0:01:44.7]} 23. Kd2 {[%clk 0:00:49.4]} 23... Rd7 {[%clk
0:01:44.6]} 24. Bd3 {[%clk 0:00:49.7]} 24... Rfd8 {[%clk 0:01:34.8]} 25. Nd4
{[%clk 0:00:34.9]} 25... Bb2 {[%clk 0:01:30.9]} 26. Ne2 {[%clk 0:00:33.4]} 26...
Rc8 {[%clk 0:01:25.2]} 27. Rb1 {[%clk 0:00:30.8]} 27... Ba3 {[%clk 0:01:26.3]}
28. Rb3 {[%clk 0:00:31]} 28... Bc5 {[%clk 0:01:25.2]} 29. Rgb1 {[%clk
0:00:30.3]} 29... Be3+ {[%clk 0:01:25.3]} 30. Ke1 {[%clk 0:00:31.7]} 30... Bc6
{[%clk 0:01:22.2]} 31. Bxa6 {[%clk 0:00:31.6]} 31... Re8 {[%clk 0:01:20.4]} 32.
Rb8 {[%clk 0:00:31.2]} 32... Rdd8 {[%clk 0:01:19.4]} 33. Rxd8 {[%clk 0:00:28.9]}
33... Rxd8 {[%clk 0:01:20.5]} 34. c4 {[%clk 0:00:26.9]} 34... Ne7 {[%clk
0:01:15.9]} 35. Rb8 {[%clk 0:00:25.5]} 35... Rxb8 {[%clk 0:01:16.5]} 36. Bxb8
{[%clk 0:00:27.1]} 36... Be4 {[%clk 0:01:14.3]} 37. Bd6 {[%clk 0:00:24.6]} 37...
Nc6 {[%clk 0:01:14.7]} 38. c3 {[%clk 0:00:22.4]} 38... Na5 {[%clk 0:01:04.9]}
39. Bb5 {[%clk 0:00:22.8]} 39... Bd3 {[%clk 0:01:04.6]} 40. Nd4 {[%clk
0:00:23.8]} 40... Bxc4 {[%clk 0:01:04.3]} 41. Bxc4 {[%clk 0:00:24.7]} 41... Nxc4
{[%clk 0:01:05.3]} 42. Bc7 {[%clk 0:00:26.1]} 42... Bg1 {[%clk 0:00:59.2]} 43.
h3 {[%clk 0:00:23.6]} 43... h6 {[%clk 0:00:55.6]} 44. gxh6 {[%clk 0:00:23.2]}
44... gxh6 {[%clk 0:00:56.8]} 45. Ke2 {[%clk 0:00:24.8]} 45... Kf8 {[%clk
0:00:53.7]} 46. Kf3 {[%clk 0:00:26]} 46... Ke7 {[%clk 0:00:53.8]} 47. Ne2 {[%clk
0:00:25.6]} 47... Bc5 {[%clk 0:00:53.6]} 48. Be5 {[%clk 0:00:25.3]} 48... f6
{[%clk 0:00:53.5]} 49. Bd4 {[%clk 0:00:26.8]} 49... Bd6 {[%clk 0:00:53.8]} 50.
Kg4 {[%clk 0:00:26.4]} 50... Kf7 {[%clk 0:00:52.6]} 51. Kh5 {[%clk 0:00:27]}
51... Bf8 {[%clk 0:00:53.4]} 52. f5 {[%clk 0:00:25.7]} 52... exf5 {[%clk
0:00:53.2]} 53. Nf4 {[%clk 0:00:26.9]} 53... Bd6 {[%clk 0:00:51.8]} 54. Nd5
{[%clk 0:00:25.6]} 54... f4 {[%clk 0:00:51.8]} 55. Bxf6 {[%clk 0:00:24.5]} 55...
f3 {[%clk 0:00:52.1]} 56. Bd4 {[%clk 0:00:25.2]} 56... Bg3 {[%clk 0:00:49.1]}
57. Kxh6 {[%clk 0:00:24.7]} 57... f2 {[%clk 0:00:50.5]} 58. Bxf2 {[%clk
0:00:25.6]} 58... Bxf2 {[%clk 0:00:51.9]} 59. Kg5 {[%clk 0:00:26.9]} 59... Ke6
{[%clk 0:00:52.7]} 60. Nf4+ {[%clk 0:00:27.1]} 60... Ke5 {[%clk 0:00:53.1]} 61.
Nd3+ {[%clk 0:00:28.6]} 61... Ke4 {[%clk 0:00:54.5]} 62. Nxf2+ {[%clk
0:00:30.2]} 62... Kf3 {[%clk 0:00:56.4]} 63. Ng4 {[%clk 0:00:31.3]} 63... Nd6
{[%clk 0:00:56.2]} 64. Ne5+ {[%clk 0:00:31.3]} 64... Ke4 {[%clk 0:00:55.8]} 65.
Ng6 {[%clk 0:00:32.6]} 65... Kd3 {[%clk 0:00:54.8]} 66. h4 {[%clk 0:00:33.5]}
66... Kxc3 {[%clk 0:00:56.2]} 67. h5 {[%clk 0:00:34.1]} 67... Kd4 {[%clk
0:00:56.8]} 68. Kf6 {[%clk 0:00:33.9]} 68... Ne4+ {[%clk 0:00:56.4]} 69. Kf5
{[%clk 0:00:34.1]} 69... Ng3+ {[%clk 0:00:57.1]} 70. Kg4 {[%clk 0:00:35.4]}
70... Nxh5 {[%clk 0:00:58.9]} 71. Kxh5 {[%clk 0:00:37.2]} 1/2-1/2